Cogmind - Beta 11.1 @@@ ROGUE MODE // 2022.04.26 @ 08:11:33 Player: Torako Result: Destroyed by 8R-AWN with 8R-AWN's Boregun Performance ------------- Evolutions (0) 0 Regions Visited (3) 600 Robots Destroyed (7) 35 Value Destroyed (101) 101 Prototype IDs (26) 520 Alien Tech Used (0) 0 Bonus (300) 300 TOTAL SCORE: 1556 Bonus ------- Aligned with FarCom 300 Cogmind --------- Core Integrity 0/250 Matter 183/300 Energy 250/250 System Corruption 1% Temperature Warm (136) Movement Rolling (115) Ox1 Location -10/Exiles Parts ------- > --- POWER (1) -------- Ion Engine > --- PROPULSION (2) --- Compact Wheel > --- UTILITY (2) ------ Large Storage Unit Machine Analyzer > --- WEAPON (2) ------- Light Assault Rifle Assault Cannon > --- INVENTORY (15) --- Ion Engine Heat Sink Heat Sink Structural Scanner Experimental Sensor Array Seismic Detector Small Laser Pulse Rifle Field Lobotomy Kit (5) Peak State ------------ > --- POWER ------------ Ion Engine > --- PROPULSION ------- Compact Wheel Compact Wheel > --- UTILITY ---------- Medium Storage Unit Machine Analyzer > --- WEAPON ----------- Pulse Rifle Assault Cannon > --- INVENTORY -------- Ion Engine Compact Wheel Heat Sink Heat Sink Structural Scanner Experimental Sensor Array Seismic Detector Small Laser Light Assault Rifle Field Lobotomy Kit [Rating: 15] Favorites ----------- Power Ion Engine Engine Ion Engine Propulsion Compact Wheel Wheel Compact Wheel Utility Machine Analyzer Device Seismic Detector Storage Medium Storage Unit Processor Machine Analyzer Weapon Assault Cannon Energy Gun Small Laser Ballistic Gun Light Assault Rifle Ballistic Cannon Assault Cannon Build | -11 -10 -10 -10 ------- Run | Scr Mat Min Exi Slots Evolved . | . . . . Power . | . . . . Propulsion . | . . . . Utility . | . . . . Weapon . | . . . . Parts Attached 14 | 7 2 2 3 Power 1 | 1 . . . Engine 1 | 1 . . . Core . | . . . . Reactor . | . . . . Propulsion 3 | 2 . . 1 Treads . | . . . . Leg . | . . . . Wheel 3 | 2 . . 1 Hover . | . . . . Flight . | . . . . Utility 5 | 2 2 . 1 Device 1 | 1 . . . Storage 3 | 1 1 . 1 Processor 1 | . 1 . . Hackware . | . . . . Protection . | . . . . Artifact . | . . . . Weapon 5 | 2 . 2 1 Energy Gun 3 | 2 . 1 . Energy Cannon . | . . . . Ballistic Gun 1 | . . . 1 Ballistic Cannon 1 | . . 1 . Launcher . | . . . . Special Weapon . | . . . . Impact Weapon . | . . . . Slashing Weapon . | . . . . Piercing Weapon . | . . . . Special Melee Weapon . | . . . . Unidentified Prototypes . | . . . . Parts Lost 2 | . . . 2 Power . | . . . . Propulsion 2 | . . . 2 Utility . | . . . . Weapon . | . . . . Highest Loss Streak 1 | . . . 1 To Critical Strikes . | . . . . Average Slot Usage (%) 99 | . 100 99 99 Engine 14 | . 14 14 14 Wheel 27 | . 28 28 27 Device 1 | . 6 . . Storage 14 | . 14 14 14 Processor 12 | . 7 14 14 Energy Gun 16 | . 28 20 11 Ballistic Gun 1 | . . . 2 Ballistic Cannon 9 | . . 6 14 Naked Turns . | . . . . Heaviest Build 33 | 13 17 23 33 Greatest Support 32 | 32 32 32 32 Greatest Overweight (x) 1 | . . . 1 Average Overweight (x) . | . . . . Largest Inventory Capacity 15 | 8 10 10 15 Average Capacity 11 | 7 8 10 12 Most Carried 10 | 3 7 10 10 Average Carried 8 | 1 3 8 9 Final Capacity 15 | 8 10 10 15 Final Carried 10 | 3 7 10 9 Class Distribution -------------------- 100% | Mutant Dominant Class ---------------- Mutant | -10/Materials Mutant | -10/Mines Mutant | -10/Exiles Resources | -11 -10 -10 -10 ----------- Run | Scr Mat Min Exi Matter Collected 383 | 270 20 . 93 Remotely . | . . . . Salvage Created 356 | 121 200 . 35 Parts 18 | 5 13 . . Haulers Intercepted 1 | . 1 . . Recyclers Shooed 1 | . 1 . . Parts Field Recycled . | . . . . Retrieved Matter . | . . . . Parts Self-Destructed . | . . . . Prevented . | . . . . Kills | -11 -10 -10 -10 ------- Run | Scr Mat Min Exi Combat Hostiles Destroyed 7 | . 2 . 5 Guns 2 | . 2 . . Cannons 5 | . . . 5 Classes Destroyed 7 | 2 4 . 1 Builder 1 | . 1 . . Tunneler 1 | 1 . . . Hauler 1 | . 1 . . Recycler 1 | 1 . . . Mechanic 1 | . 1 . . Grunt 2 | . 2 . . Assembled 5 | . . . 5 Best Kill Streak 5 | 2 3 . 5 Combat Bots Only 5 | . 2 . 5 Max Kills in Single Turn 1 | 1 1 . 1 Gunslinging . | . . . . Exploded . | . . . . Melee . | . . . . Uniques/NPCs Destroyed . | . . . . Combat | -11 -10 -10 -10 -------- Run | Scr Mat Min Exi Damage Taken 648 | . 91 . 557 Core 254 | . 39 . 215 Absorbed by Shields . | . . . . Core Remaining (%) 100 | 100 . . . Volleys Fired 45 | 5 14 . 26 Largest 2 | 2 2 . 2 Hottest 80 | 80 80 . 64 Shots Fired 89 | 10 28 . 51 Gun 63 | 10 28 . 25 Cannon 26 | . . . 26 Launcher . | . . . . Special . | . . . . Kinetic 51 | . . . 51 Thermal 38 | 10 28 . . Explosive . | . . . . Electromagnetic . | . . . . Robot Hit Streak 7 | 5 4 . 7 Robot Miss Streak 4 | 1 2 . 4 Penetration Max . | . . . . Secondary Targets 1 | . 1 . . Max Gunslinging Chain 1 | . 1 . . Shots Hit Robots 60 | 7 16 . 37 Core Hits 25 | 3 10 . 12 Critical Kills . | . . . . Critical Parts Destroyed . | . . . . Critical Strikes 2 | . . . 2 Blast 2 | . . . 2 Melee Attacks . | . . . . Impact . | . . . . Slashing . | . . . . Piercing . | . . . . Sneak Attacks . | . . . . Combat Hostiles . | . . . . Follow-up Attacks . | . . . . Damage Inflicted 943 | 74 212 . 657 Guns 407 | 74 210 . 123 Cannons 534 | . . . 534 Explosions . | . . . . Melee . | . . . . Ramming 2 | . 2 . . Kinetic 657 | . . . 657 Thermal 284 | 74 210 . . Explosive . | . . . . Electromagnetic . | . . . . Impact . | . . . . Slashing . | . . . . Piercing . | . . . . Highest Corruption 1 | . 1 1 1 Average Corruption 1 | . 1 1 1 Corruption Purged . | . . . . Corruption Blocked . | . . . . Effects 9 | . . 1 8 Message Errors 3 | . . . 3 Matter Fused 2 | . . 1 1 Heat Flow Errors 1 | . . . 1 Energy Discharges 1 | . . . 1 Data Loss (minor) 2 | . . . 2 Overload Shots . | . . . . Overflow Damage . | . . . . Projectiles . | . . . . Explosions . | . . . . Melee . | . . . . Knockbacks 8 | . . . 8 Impact . | . . . . Kinetic 8 | . . . 8 Secondary . | . . . . Self-Inflicted Damage 1 | . 1 . . Shots . | . . . . Rammed 1 | . 1 . . Targets Rammed 1 | . 1 . . Kicked . | . . . . Crushed . | . . . . Highest Temperature 144 | 56 72 . 144 Average Temperature 42 | 29 24 . 56 Received Heat Transfer 66 | . 66 . . Siege Activations . | . . . . Robots Corrupted . | . . . . Combat Hostiles . | . . . . Parts Fried . | . . . . Impact Corruptions . | . . . . Robots Melted . | . . . . Combat Hostiles . | . . . . Parts Melted . | . . . . Heat Transferred 625 | 175 450 . . Parts Sabotaged . | . . . . Parts Stolen . | . . . . Parts Stripped . | . . . . Power Chain Reactions . | . . . . Missiles Intercepted . | . . . . Alert | -11 -10 -10 -10 ------- Run | Scr Mat Min Exi Peak Influence 155 | 10 155 60 . Initial 60 | . 6 60 . Average 54 | 3 65 60 . Maximum Alert Level . | . . . . Low Security (%) 100 | 100 100 100 . Level 1 . | . . . . Level 2 . | . . . . Level 3 . | . . . . Level 4 . | . . . . Level 5 . | . . . . High Security . | . . . . Max Security . | . . . . Squads Dispatched 2 | . 1 1 . Investigation 2 | . 1 1 . Extermination . | . . . . Reinforcement . | . . . . Assault . | . . . . Garrison . | . . . . Intercept . | . . . . Searches Triggered . | . . . . Construction Impeded . | . . . . Haulers Reinforced . | . . . . Active Scanning Responses . | . . . . Cargo Convoy Interrupts . | . . . . Stealth | -11 -10 -10 -10 --------- Run | Scr Mat Min Exi Distress Signals 1 | . 1 . . Communications Jammed . | . . . . Distress Signals . | . . . . Times Spotted 15 | . 8 . 7 Peak Tracking Total 9 | . 4 . 9 Tactical Retreats . | . . . . Traps | -11 -10 -10 -10 ------- Run | Scr Mat Min Exi Traps Triggered 2 | . 2 . . Indirectly . | . . . . Trap Hack Attempts . | . . . . Triggered . | . . . . Disarmed . | . . . . Reprogrammed . | . . . . Reused . | . . . . Traps Extracted . | . . . . Installed . | . . . . Triggered . | . . . . Machines | -11 -10 -10 -10 ---------- Run | Scr Mat Min Exi Machines Disabled 3 | . . . 3 Max in Single Turn 1 | . . . 1 Machines Sabotaged . | . . . . Garrisons Compromised . | . . . . Overloaded Fab Kills . | . . . . Hacking | -11 -10 -10 -10 --------- Run | Scr Mat Min Exi Machines Accessed 9 | . 6 1 2 Terminals 4 | . 4 . . Fabricators . | . . . . Repair Stations 1 | . 1 . . Recycling Units 1 | . 1 . . Scanalyzers . | . . . . Garrison Access . | . . . . Total Hacks 19 | . 16 1 2 Successful 13 | . 10 1 2 Failed 5 | . 5 . . Catastrophic 1 | . 1 . . Database Lockouts 1 | . 1 . . Manual 15 | . 14 . 1 Terminals 14 | . 14 . . Fabricators . | . . . . Repair Stations 1 | . 1 . . Recycling Units 1 | . 1 . . Scanalyzers . | . . . . Garrison Access . | . . . . Terminal Hacks 7 | . 4 1 2 Record 1 | . . . 1 Robot Analysis 2 | . 2 . . Prototype ID Bank 1 | . 1 . . Open Door 1 | . . 1 . Terminal Index 1 | . 1 . . EX-Prototype ID Bank 1 | . . . 1 Fabricator Hacks . | . . . . Repair Station Hacks . | . . . . Recycling Unit Hacks . | . . . . Scanalyzer . | . . . . Garrison Access Hacks . | . . . . Unauthorized Hacks 6 | . 6 . . Terminals 4 | . 4 . . Track 2 | . 2 . . Botnet 2 | . 2 . . Fabricators . | . . . . Repair Stations 1 | . 1 . . Mechanics 1 | . 1 . . Recycling Units 1 | . 1 . . Tunnel 1 | . 1 . . Scanalyzers . | . . . . Garrison Access . | . . . . Data Cores Recovered . | . . . . Used . | . . . . Hacking Detections 4 | . 4 . . Full Trace Events . | . . . . Feedback Events . | . . . . Feedback Blocked . | . . . . Robot Schematics Acquired . | . . . . Robots Built . | . . . . Authchips . | . . . . Time . | . . . . Total Robot Build Rating . | . . . . Part Schematics Acquired . | . . . . Parts Built . | . . . . Authchips . | . . . . Time . | . . . . Total Part Build Rating . | . . . . Parts Repaired . | . . . . Time . | . . . . Parts Recycled . | . . . . Recycled Matter . | . . . . Retrieved Matter . | . . . . Retrieved Components . | . . . . Parts Scanalyzed . | . . . . Part Schematics Acquired . | . . . . Parts Damaged . | . . . . Bothacking | -11 -10 -10 -10 ------------ Run | Scr Mat Min Exi Used RIF Installer . | . . . . Robots Hacked . | . . . . Non-combat . | . . . . Combat . | . . . . Robot Hacks Applied . | . . . . Relay Couplers Released . | . . . . Fabnet Peak Effective % . | . . . . Robots Rewired . | . . . . Allies Hacked . | . . . . Hacks Repelled . | . . . . Allies | -11 -10 -10 -10 -------- Run | Scr Mat Min Exi Total Allies 3 | . . 3 . Largest Group 3 | . . 3 3 Highest-Rated Group 40 | . . 40 40 Highest-Rated Ally 16 | . . 16 16 Total Orders . | . . . . Ally Attacks 13 | . . . 13 Total Damage 149 | . . . 149 Kills 2 | . . . 2 Allies Corrupted . | . . . . Allies Melted . | . . . . Intel | -11 -10 -10 -10 ------- Run | Scr Mat Min Exi Robot Analysis Total 2 | . 2 . . Derelict Logs Recovered 1 | . . 1 . Drone Launches . | . . . . Drone Recoveries . | . . . . Exploration | -11 -10 -10 -10 ------------- Run | Scr Mat Min Exi Turns Passed 1282 | 76 249 209 748 Spaces Moved 1054 | 48 194 193 619 Core 3 | 3 . . . Treads . | . . . . Legs . | . . . . Wheels 1051 | 45 194 193 619 Hover . | . . . . Flight . | . . . . Fastest Speed 50 | 50 100 100 100 Average Speed 103 | 96 100 100 105 Slowest Speed 115 | 100 100 100 115 Overloaded Moves . | . . . . Propulsion Burnouts . | . . . . Robots Hopped . | . . . . Cave-ins Triggered . | . . . . Exploration Rate (%) 49 | 3 53 53 89 Regions Visited 3 Branch Regions 2 Pre-discovered Areas 2 | . 1 . 1 Known Exits Taken . | . . . . Unknown Exits Taken 3 | 1 1 1 . Scrap Searched . | . . . . Spaces Dug . | . . . . Terrain Destroyed . | . . . . Melee . | . . . . Projectile . | . . . . AOE . | . . . . Terrain Rammed . | . . . . Walls Destroyed . | . . . . Machines Disabled . | . . . . Actions | -11 -10 -10 -10 --------- Run | Scr Mat Min Exi Total 1162 | 65 221 209 667 Wait 34 | . 6 12 16 Move 1052 | 47 194 192 619 Hop . | . . . . Pick Up 10 | 5 3 1 1 Fast Attach 9 | 6 1 2 . Attach 2 | 1 . . 1 Detach 3 | . 1 2 . Swap 3 | . 1 . 2 Drop 4 | 1 1 . 2 Fire 45 | 5 14 . 26 Melee . | . . . . Ram . | . . . . Kick . | . . . . Crush . | . . . . Escape Stasis . | . . . . Rewire . | . . . . Trap . | . . . . Miscellaneous . | . . . . Route ------- -11/Scrapyard -10/Materials -10/Mines (discovered 2 exits: [*Mat] / *Exi) -10/Exiles (discovered 1 exit: [*Min]) History --------- Turn | Location | Event 23 | -11/Scrapyard | Discovered new exit (range 16) 77 | -11/Scrapyard | Entered Materials 113 | -10/Materials | Central database locked down 162 | -10/Materials | Discovered new exit (range 15) 308 | -10/Materials | Build established: Mutant 326 | -10/Materials | Entered Mines 328 | -10/Mines | Assisted by bots powering up and referring to "LRC-V3" 424 | -10/Mines | Met a Derelict shopkeep closing up shop 452 | -10/Mines | Found a damaged Exp. Sensor Array with a note attached 454 | -10/Mines | Found Prototype Device 474 | -10/Mines | Learned Materials garrison access intel 496 | -10/Mines | Discovered new exit (range 7) 519 | -10/Mines | Deemed a non-threat by the Exiles lab entrance 519 | -10/Mines | Discovered new exit (range 5) 535 | -10/Mines | Entered Exiles 535 | -10/Exiles | Accompanied by 3 allies 560 | -10/Exiles | Met 8R-AWN 577 | -10/Exiles | Met EX-HEX 605 | -10/Exiles | Met EX-BIN 617 | -10/Exiles | Aligned with FarCom system 618 | -10/Exiles | Given EX-Vault access code 641 | -10/Exiles | Opened EX-Vault 648 | -10/Exiles | Found Field Lobotomy Kit 671 | -10/Exiles | Warned to stay clear of 0b10 Research branches 702 | -10/Exiles | Met EX-DEC 706 | -10/Exiles | Learned location of Zion (-7) 974 | -10/Exiles | Visited The Gauntlet 1129 | -10/Exiles | Attacked by the Exiles 1151 | -10/Exiles | Discovered new exit (range 10) 1186 | -10/Exiles | Core integrity fell below 50% 1250 | -10/Exiles | Core integrity fell below 20% 1283 | -10/Exiles | Destroyed by 8R-AWN with 8R-AWN's Boregun Last Messages --------------- HV Slug penetrates Earth. Earth collapses. 8R-AWN knocked back. Penetrated by HV Slug. HV Slug penetrates Earth. HV Slug penetrates Wall. 8R-AWN knocked back. HV Slug penetrates Wall. HV Slug penetrates Earth. HV Slug penetrates Wall. Penetrated by HV Slug. HV Slug penetrates Earth. Penetrated by HV Slug. HV Slug penetrates Wall. HV Slug penetrates Earth. Penetrated by HV Slug. HV Slug penetrates Wall. Penetrated by HV Slug. HV Slug penetrates Wall. Penetrated by HV Slug. Map ----- +----------------------------------------------------+ | | | | | | | | | ?????????????????????????????????????????????? | | ?????????????????????????????????????????????? | | ?????????????????????????????????????????????? | | ?????????????????????????????????????????????? | | ?????????????????????????????????????????????? | | ?????????????????????????????????????????????? | | ?????????????????????????????????????????????? | | ?????????????????????#???????????????????????? | | ????????????????????? ???????????????????????? | | ????????????????????? ???????????????????????? | | ????????????????????? ???????????????????????? | | ????????????????????? ???????????????????????? | | ????????????????????? ???????????????????????? | | ????????????????????# #??????????????????????? | | ??????????????????#?# #??????????????????????? | | ???????????????##? #??????????????????????? | | ???????????????#;##;# #??????????????????????? | | ???????????????## #;#??????????????????????? | | ???????????????# ;#??????????????????????? | | ???????????????# < ; ??????????????????????? | | ???????????????# ;##?????????????????????? | | ???????????????# @ #?????????????????????? | | ???????????????# ;#?????????????????????? | | ???????????????## ;#?????????????????????? | | ????????????????# ;#?????????????????????? | | ????????????????## = #????????????#######??? | | ?????????????????# % #######??????#!!! "#??? | | ?????????????????# %% % #""##?????# "#??? | | ?????????????????## [ =%[#?????# "#??? | | ??????????????????## g !=%= ##???## ""#??? | | ??????????????????#""%% %* #####" ""#??? | | ??????????????????#### % ##" ""#??? | | ?????????????????????## #"" #????? | | ??????????????????????# ## #????? | | ??????????????????????####### ##???? | | ????????????????????????????### % "#???? | | ??????????????????????########" ###?? | | ??????????????????????# !!""""" ##? | | ??????????????????????#! "###"" ## | | ??????????????????????#! "#?##" | | ??????????????????????#! ##??#" | | ??????????????????????# !""""""###???#"# | | ??????????????????????##########?????#### | | ????????????????????????????????????????### | | ??????????????????????????????????????????### | | ????????????????????????????????????????????## | +----------------------------------------------------+ Best States ------------- Heat Dissipation 25 Energy Generation 10 Energy Capacity 250 Matter Stores 300 Matter Capacity 300 Sight Range 16 Terrain Scan Density 10 Evasion (%) 40 Item Schematics ----------------- None Robot Schematics ------------------ None Fabricated ------------ Nothing Alien Tech Used ----------------- None Achievements -------------- None Challenges ------------ None Game ------ Seed FlakCoreArmor Manual? 0 Play Time 00:17:29 Cumulative 310.3 hours Start 2022.04.26 @ 07:55:27 End 2022.04.26 @ 08:11:33 Sessions 1 Manual Loads 0 Difficulty Rogue Special Mode None Game No. 303 Rogue 303 Adventurer 0 Explorer 0 Win Type - Total 18 Types 12/0/4/2/0/0/0/0/0 Lore% 81 Gallery% 87 Achievement% 77 Wizard Run 0 Options --------- ASCII 0 Keyboard 1 Movement Numpad Keybinds 0 Fullscreen 1 Font 18/SmallcapsGlow Map View 76x50 Tactical HUD 1 Map Filters NONE Filters NONE Steam 1 RUN: 631b3669-f656-4458-973a-f9880e2fe9d6